fUSD/lending_fUSD_20260203
["ID","MTS","AMOUNT","RATE_DAILY","PERIOD"]
[404390112,1770092046583,-255.99999983,7.722e-05,2]
[404390113,1770092048096,-2866.63634917,7.722e-05,2]
[404390114,1770092049748,-250.0,7.722e-05,2]
[404390115,1770092052542,-550.0,7.722e-05,2]
[404390116,1770092054555,-560.22087833,7.722e-05,2]
[404390117,1770092056034,-262.07596842,7.722e-05,2]
[404390118,1770092059485,-250.0,7.722e-05,2]
[404390119,1770092062170,-302.0,7.722e-05,2]
[404390120,1770092066756,-199.75245602,7.722e-05,2]
[404390121,1770092069193,-305.39590766,7.722e-05,2]
[404390122,1770092070764,-302.0,7.722e-05,2]
[404390123,1770092072872,-495.08626065,7.722e-05,2]
[404390124,1770092075974,-1070.0,7.722e-05,2]
[404390125,1770092078156,-174.59224297,7.722e-05,2]
[404390126,1770092080611,-310.48239809,7.722e-05,2]
[404390127,1770092083096,-488.02390658,7.722e-05,2]
[404390128,1770092086977,-302.0,7.722e-05,2]
[404390129,1770092090464,-367.38061974,7.722e-05,2]
[404390130,1770092092506,-237.92403158,7.722e-05,2]
[404390131,1770092093940,-907.2260868,7.722e-05,2]
[404390132,1770092097190,-302.0,7.722e-05,2]
[404390133,1770092098690,-471.24218522,7.722e-05,2]
[404390134,1770092100236,-252.76591589,7.722e-05,2]
[404390135,1770092101632,1200.0,7.721e-05,2]
[404390136,1770092101891,-560.22087833,7.722e-05,2]
[404390137,1770092105267,-651.0,7.722e-05,2]
[404390138,1770092106830,-500.0,7.722e-05,2]
[404390139,1770092111251,-1073.24458984,7.722e-05,2]
[404390140,1770092113910,-174.56232373,7.722e-05,2]
[404390141,1770092116228,-1471.52462832,7.722e-05,2]
[404390142,1770092116316,-10000.01,7.722e-05,2]
[404390143,1770092116441,-10000.01,7.722e-05,2]
[404390144,1770092116543,-10000.01,7.722e-05,2]
[404390145,1770092116665,-10000.01,7.722e-05,2]
[404390146,1770092116795,-10000.01,7.722e-05,2]
[404390147,1770092116892,-10000.01,7.722e-05,2]
[404390148,1770092116999,-10000.01,7.722e-05,2]
[404390149,1770092117148,-1045.99429143,7.722e-05,2]
[404390150,1770092117163,-10000.01,7.722e-05,2]
[404390151,1770092117280,-10000.01,7.722e-05,2]
[404390152,1770092117404,-10000.01,7.722e-05,2]
[404390153,1770092117525,-10000.01,7.722e-05,2]
[404390154,1770092117663,-10000.01,7.722e-05,2]
[404390155,1770092117774,-10000.01,7.722e-05,2]
[404390156,1770092117919,-10000.01,7.722e-05,2]
[404390157,1770092119925,-250.00209646,7.722e-05,2]
[404390158,1770092120681,-10000.01,7.722e-05,2]
[404390159,1770092120894,-10000.01,7.722e-05,2]
[404390160,1770092121011,-10000.01,7.722e-05,2]
[404390161,1770092121201,-10000.01,7.722e-05,2]
[404390162,1770092121326,-10000.01,7.722e-05,2]
[404390163,1770092121994,-302.0,7.722e-05,2]
[404390164,1770092123786,-10000.01,7.722e-05,2]
[404390165,1770092124956,-10000.01,7.722e-05,2]
[404390166,1770092125049,-10000.01,7.722e-05,2]
[404390167,1770092126912,-241.10012185,7.722e-05,2]
[404390168,1770092129198,-262.57891664,7.722e-05,2]
[404390169,1770092130422,-235.0,7.722e-05,2]
[404390170,1770092130787,-10000.01,7.722e-05,2]
[404390171,1770092132039,-800.03836094,7.722e-05,2]
[404390172,1770092132472,-10000.01,7.722e-05,2]
[404390173,1770092132647,-10000.01,7.722e-05,2]
[404390174,1770092132841,-10000.01,7.722e-05,2]
[404390175,1770092133008,-10000.01,7.722e-05,2]
[404390176,1770092133179,-10000.01,7.722e-05,2]
[404390177,1770092133332,-10000.01,7.722e-05,2]
[404390178,1770092133549,-500.00000017,7.722e-05,2]
[404390179,1770092136203,-205.10128485,7.722e-05,2]
[404390180,1770092137649,-192.84025859,7.722e-05,2]
[404390181,1770092138614,150.0,7.694e-05,2]
[404390182,1770092140182,-280.77359984,7.722e-05,2]
[404390183,1770092143040,-1911.74535456,7.722e-05,2]
[404390184,1770092145638,-245.06346995,7.722e-05,2]
[404390185,1770092147692,-203.46109691,7.722e-05,2]
[404390186,1770092150368,-479.13010388,7.722e-05,2]
[404390187,1770092152397,-500.0,7.722e-05,2]
[404390190,1770092154622,-205.68075659,7.722e-05,2]
[404390191,1770092157319,-184.59508807,7.722e-05,2]
[404390192,1770092159028,-250.0,7.722e-05,2]
[404390193,1770092160676,-175.6316,7.722e-05,2]
[404390194,1770092162102,300.0,7.721e-05,2]
[404390195,1770092162744,-373.99821254,7.722e-05,2]
[404390196,1770092165411,-156.07596842,7.722e-05,2]
[404390197,1770092167557,-385.62863536,7.722e-05,2]
[404390198,1770092170246,-560.22087833,7.722e-05,2]
[404390199,1770092171882,-417.72240687,7.722e-05,2]
[404390200,1770092174153,-343.92403158,7.722e-05,2]
[404390203,1770092176253,-500.0,7.722e-05,2]
[404390204,1770092177768,-419.45347374,7.722e-05,2]
[404390205,1770092180729,-798.09722767,7.722e-05,2]
[404390206,1770092182277,-313.97609342,7.722e-05,2]
[404390207,1770092184405,-300.0,7.722e-05,2]
[404390208,1770092187847,-208.89063738,7.722e-05,2]
[404390209,1770092190964,-223.42942549,7.722e-05,2]
[404390210,1770092193179,-173.49272529,7.722e-05,2]
[404390211,1770092195406,-170.06855009,7.722e-05,2]
[404390212,1770092197513,-318.49932487,7.722e-05,2]
[404390213,1770092199680,-500.0,7.722e-05,2]
[404390214,1770092201937,-481.07873741,7.722e-05,2]
[404390215,1770092203094,-500.0,7.722e-05,2]
[404390216,1770092205330,-1622.9577214,7.722e-05,2]
[404390217,1770092208653,-313.97609342,7.722e-05,2]
[404390218,1770092210124,-281.24012483,7.722e-05,2]
[404390219,1770092211678,-497.86351717,7.722e-05,2]
[404390222,1770092221704,300.0,7.721e-05,2]
[404390223,1770092223559,-965.73893457,7.945e-05,2]
[404390224,1770092223586,-1060.04769286,7.945e-05,2]
[404390225,1770092223659,-198.43674514,7.945e-05,2]
[404390226,1770092223701,-750.0,7.945e-05,2]
[404390227,1770092223739,-3500.01,7.945e-05,2]
[404390228,1770092223800,-5000.01,7.945e-05,2]
[404390229,1770092224079,4250.01,7.622e-05,2]
[404390230,1770092224106,5000.01,7.622e-05,2]
[404390231,1770092224132,5000.01,7.622e-05,2]
[404390232,1770092224160,5000.01,7.622e-05,2]
[404390233,1770092224186,5000.01,7.622e-05,2]
[404390234,1770092224213,5000.01,7.622e-05,2]
[404390235,1770092224239,5000.01,7.622e-05,2]
[404390236,1770092224264,5000.01,7.622e-05,2]
[404390237,1770092224293,10000.01,7.622e-05,2]
[404390238,1770092224320,10000.01,7.622e-05,2]
[404390239,1770092224349,10000.01,7.622e-05,2]
[404390240,1770092224375,10000.01,7.622e-05,2]
[404390241,1770092224401,10000.01,7.622e-05,2]
[404390242,1770092224426,10000.01,7.622e-05,2]
[404390243,1770092224453,10000.01,7.622e-05,2]
[404390244,1770092224479,10000.01,7.622e-05,2]
[404390245,1770092224505,10000.01,7.622e-05,2]
[404390246,1770092224532,10000.01,7.622e-05,2]
[404390247,1770092227858,-500.0,7.622e-05,2]
[404390250,1770092234701,-270.85209755,7.622e-05,2]
[404390251,1770092237868,-941.09340934,7.622e-05,2]
[404390252,1770092239422,-354.35807597,7.622e-05,2]
[404390253,1770092242011,-195.0,7.622e-05,2]
[404390254,1770092245185,-386.24934048,7.622e-05,2]
[404390255,1770092247918,-217.61663733,7.622e-05,2]
[404390258,1770092255613,-300.0,7.622e-05,2]
[404390259,1770092257187,-250.0,7.622e-05,2]
[404390260,1770092258777,-250.0,7.622e-05,2]
[404390261,1770092260799,-15642.98604797,7.622e-05,2]
[404390262,1770092262134,-448.20652452,7.622e-05,2]
[404390263,1770092264181,-508.40491193,7.622e-05,2]
[404390264,1770092266288,-560.22087833,7.622e-05,2]
[404390267,1770092269249,-256.18473448,7.622e-05,2]
[404390268,1770092271445,-401.74706175,7.622e-05,2]
[404390269,1770092273005,-427.99821254,7.622e-05,2]
[404390270,1770092274568,-187.77873936,7.622e-05,2]
[404390271,1770092278029,-250.0,7.622e-05,2]
[404390272,1770092280525,-651.0,7.622e-05,2]
[404390273,1770092281604,300.0,7.621e-05,2]
[404390274,1770092283053,-2500.0,7.622e-05,2]
[404390275,1770092286413,-202.63053104,7.622e-05,2]
[404390278,1770092290367,-467.41,7.622e-05,2]
[404390280,1770092293207,-224.64771981,7.622e-05,2]
[404390281,1770092295998,-500.0,7.622e-05,2]
[404390282,1770092297621,-1219.39511878,7.622e-05,2]
[404390283,1770092299662,-1068.98591878,7.622e-05,2]
[404390284,1770092301825,-201.87285383,7.622e-05,2]
[404390286,1770092301983,-10000.01,7.622e-05,2]
[404390287,1770092302099,-10000.01,7.622e-05,2]
[404390288,1770092302217,-10000.01,7.622e-05,2]
[404390289,1770092302327,-10000.01,7.622e-05,2]
[404390290,1770092302439,-10000.01,7.622e-05,2]
[404390291,1770092302545,-10000.01,7.622e-05,2]
[404390292,1770092302894,-10000.01,7.622e-05,2]
[404390293,1770092303032,-10000.01,7.622e-05,2]
[404390294,1770092303144,-10000.01,7.622e-05,2]
[404390295,1770092303269,-10000.01,7.622e-05,2]
[404390296,1770092303378,-10000.01,7.622e-05,2]
[404390297,1770092303479,-10000.01,7.622e-05,2]
[404390298,1770092303625,-10000.01,7.622e-05,2]
[404390299,1770092303735,-10000.01,7.622e-05,2]
[404390300,1770092305278,-194.60946896,7.622e-05,2]
[404390303,1770092306833,-10000.01,7.622e-05,2]
[404390304,1770092306999,-10000.01,7.622e-05,2]
[404390305,1770092307106,-10000.01,7.622e-05,2]
[404390306,1770092307136,-322.20939922,7.622e-05,2]
[404390307,1770092307214,-10000.01,7.622e-05,2]
[404390308,1770092307339,-10000.01,7.622e-05,2]
[404390309,1770092307439,-10000.01,7.622e-05,2]
[404390310,1770092307554,-10000.01,7.622e-05,2]
[404390311,1770092307666,-10000.01,7.622e-05,2]
[404390312,1770092307790,-10000.01,7.622e-05,2]
[404390313,1770092307887,-10000.01,7.622e-05,2]
[404390314,1770092308013,-10000.01,7.622e-05,2]
[404390315,1770092308118,-10000.01,7.622e-05,2]
[404390316,1770092308227,-10000.01,7.622e-05,2]
[404390317,1770092308352,-10000.01,7.622e-05,2]
[404390318,1770092308450,-10000.01,7.622e-05,2]
[404390319,1770092309408,-180.81215356,7.622e-05,2]
[404390320,1770092311514,-1443.87030229,7.622e-05,2]
[404390321,1770092312681,-10000.01,7.622e-05,2]
[404390322,1770092312801,-10000.01,7.622e-05,2]
[404390323,1770092313140,-10000.01,7.622e-05,2]
[404390324,1770092313245,-10000.01,7.622e-05,2]
[404390325,1770092313366,-10000.01,7.622e-05,2]
[404390326,1770092313582,-10000.01,7.622e-05,2]
[404390327,1770092313699,-10000.01,7.622e-05,2]
[404390328,1770092313799,-10000.01,7.622e-05,2]
[404390329,1770092313921,-10000.01,7.622e-05,2]
[404390330,1770092314032,-10000.01,7.622e-05,2]
[404390331,1770092314131,-10000.01,7.622e-05,2]
[404390332,1770092314171,-153.19,7.622e-05,2]
[404390333,1770092314244,-10000.01,7.622e-05,2]
[404390334,1770092314348,-10000.01,7.622e-05,2]
[404390335,1770092314688,-10000.01,7.622e-05,2]
[404390336,1770092314702,-10000.01,7.622e-05,2]
[404390337,1770092317414,-186.95725977,7.622e-05,2]
[404390339,1770092319492,-241.68153369,7.622e-05,2]
[404390342,1770092323686,-213.73649392,7.622e-05,2]
[404390343,1770092326573,-280.68245673,7.622e-05,2]
[404390344,1770092328647,-515.26350608,7.622e-05,2]
[404390345,1770092330268,-500.0,7.622e-05,2]
[404390348,1770092341998,300.0,7.621e-05,2]
[404390356,1770092402025,300.0,7.621e-05,2]
[404390362,1770092444366,233.80298424,7.621e-05,2]
[404390363,1770092446338,500.0,7.621e-05,2]
[404390364,1770092446408,237.38150491,7.621e-05,2]
[404390365,1770092462728,3128.82551085,7.612e-05,2]
[404390366,1770092462751,5000.01,7.612e-05,2]
[404390367,1770092462772,5000.01,7.612e-05,2]
[404390368,1770092462794,3456.27831395,7.612e-05,2]
[404390371,1770092492571,1543.73168605,7.469e-05,2]
[404390372,1770092492595,5000.01,7.469e-05,2]
[404390373,1770092492620,1570.47231395,7.469e-05,2]
[404390374,1770092492668,772.765,7.469e-05,2]
[404390375,1770092493433,-178.40782115,7.622e-05,2]
[404390376,1770092495819,-356.2518431,7.622e-05,2]
[404390377,1770092498261,-300.0,7.622e-05,2]
[404390378,1770092499982,-210.8813549,7.622e-05,2]
[404390379,1770092504917,-300.0,7.622e-05,2]
[404390380,1770092505539,356.2518431,7.621e-05,2]
[404390381,1770092507533,-300.0,7.622e-05,2]
[404390382,1770092509699,-10000.01,7.622e-05,2]
[404390383,1770092510016,-10000.01,7.622e-05,2]
[404390384,1770092510126,-10000.01,7.622e-05,2]
[404390385,1770092510326,-10000.01,7.622e-05,2]
[404390386,1770092510439,-10000.01,7.622e-05,2]
[404390387,1770092510494,-300.0,7.622e-05,2]
[404390388,1770092510534,-10000.01,7.622e-05,2]
[404390389,1770092510642,-10000.01,7.622e-05,2]
[404390390,1770092510764,-10000.01,7.622e-05,2]
[404390391,1770092510887,-10000.01,7.622e-05,2]
[404390392,1770092510992,-10000.01,7.622e-05,2]
[404390393,1770092511100,-10000.01,7.622e-05,2]
[404390394,1770092511202,-10000.01,7.622e-05,2]
[404390395,1770092511346,-10000.01,7.622e-05,2]
[404390396,1770092511484,-10000.01,7.622e-05,2]
[404390397,1770092511584,-10000.01,7.622e-05,2]
[404390398,1770092514484,-10000.01,7.622e-05,2]
[404390399,1770092514594,-10000.01,7.622e-05,2]
[404390400,1770092514701,-10000.01,7.622e-05,2]
[404390401,1770092514808,-10000.01,7.622e-05,2]
[404390402,1770092514929,-10000.01,7.622e-05,2]
[404390403,1770092515034,-10000.01,7.622e-05,2]
[404390404,1770092515130,-10000.01,7.622e-05,2]
[404390405,1770092515303,-10000.01,7.622e-05,2]
[404390407,1770092515431,-10000.01,7.622e-05,2]
[404390408,1770092515568,-10000.01,7.622e-05,2]
[404390409,1770092515669,-10000.01,7.622e-05,2]
[404390410,1770092515781,-10000.01,7.622e-05,2]
[404390411,1770092515898,-10000.01,7.622e-05,2]
[404390412,1770092515996,-10000.01,7.622e-05,2]
[404390413,1770092516105,-10000.01,7.622e-05,2]
[404390414,1770092520611,-10000.01,7.622e-05,2]
[404390415,1770092520723,-10000.01,7.622e-05,2]
[404390416,1770092520838,-10000.01,7.622e-05,2]
[404390417,1770092520976,-10000.01,7.622e-05,2]
[404390418,1770092521113,-10000.01,7.622e-05,2]
[404390419,1770092521232,-10000.01,7.622e-05,2]
[404390420,1770092521364,-10000.01,7.622e-05,2]
[404390421,1770092521473,-10000.01,7.622e-05,2]
[404390422,1770092521580,-10000.01,7.622e-05,2]
[404390423,1770092521781,-10000.01,7.622e-05,2]
[404390424,1770092522369,-10000.01,7.622e-05,2]
[404390425,1770092522759,-10000.01,7.622e-05,2]
[404390426,1770092522899,-10000.01,7.622e-05,2]
[404390427,1770092522993,-10000.01,7.622e-05,2]
[404390428,1770092523140,-10000.01,7.622e-05,2]
[404390429,1770092526067,2300.52084295,7.522e-05,2]
[404390430,1770092526101,5000.01,7.522e-05,2]
[404390431,1770092526131,5000.01,7.522e-05,2]
[404390432,1770092526169,5000.01,7.522e-05,2]
[404390433,1770092526201,5000.01,7.522e-05,2]
[404390434,1770092526229,5000.01,7.522e-05,2]
[404390435,1770092526257,5000.01,7.522e-05,2]
[404390436,1770092526285,5000.01,7.522e-05,2]
[404390437,1770092526318,5000.01,7.522e-05,2]
[404390438,1770092526346,5000.01,7.522e-05,2]
[404390439,1770092529824,-10000.01,7.522e-05,2]
[404390440,1770092529984,-10000.01,7.522e-05,2]
[404390441,1770092530111,-10000.01,7.522e-05,2]
[404390442,1770092530220,-10000.01,7.522e-05,2]
[404390443,1770092530330,-10000.01,7.522e-05,2]
[404390444,1770092530456,-10000.01,7.522e-05,2]
[404390445,1770092530555,-10000.01,7.522e-05,2]
[404390446,1770092530674,-10000.01,7.522e-05,2]
[404390447,1770092530786,-10000.01,7.522e-05,2]
[404390448,1770092530915,-10000.01,7.522e-05,2]
[404390449,1770092533409,-750.0,7.522e-05,2]
[404390450,1770092533474,-5000.01,7.522e-05,2]
[404390451,1770092533569,-5000.01,7.522e-05,2]
[404390452,1770092533690,-5000.01,7.522e-05,2]
[404390453,1770092533810,-5000.01,7.522e-05,2]
[404390454,1770092534287,-5000.01,7.522e-05,2]
[404390455,1770092534302,-5000.01,7.522e-05,2]
[404390456,1770092534324,-5000.01,7.522e-05,2]
[404390457,1770092535820,-5000.01,7.522e-05,2]
[404390458,1770092535848,-5000.01,7.522e-05,2]
[404390459,1770092535866,-5000.01,7.522e-05,2]
[404390460,1770092535920,-5000.01,7.522e-05,2]
[404390461,1770092536077,-5000.01,7.522e-05,2]
[404390462,1770092536217,-5000.01,7.522e-05,2]
[404390463,1770092536306,-5000.01,7.522e-05,2]
[404390464,1770092536414,-5000.01,7.522e-05,2]
[404390465,1770092536510,-5000.01,7.522e-05,2]
[404390466,1770092536641,-5000.01,7.522e-05,2]
[404390467,1770092536744,-5000.01,7.522e-05,2]
[404390468,1770092536863,-5000.01,7.522e-05,2]
[404390469,1770092536975,-5000.01,7.522e-05,2]
[404390470,1770092537083,-5000.01,7.522e-05,2]
[404390471,1770092537185,-5000.01,7.522e-05,2]
[404390472,1770092566926,217.18443531,7.521e-05,2]
[404390473,1770092567818,500.0,7.521e-05,2]
[404390474,1770092568103,150.0,7.521e-05,2]
[404390475,1770092568162,500.0,7.521e-05,2]
[404390476,1770092568228,500.0,7.521e-05,2]
[404390477,1770092568286,500.0,7.521e-05,2]
[404390478,1770092568356,500.0,7.521e-05,2]
[404390479,1770092568417,500.0,7.521e-05,2]
[404390480,1770092581899,300.0,7.521e-05,2]
[404390481,1770092641883,300.0,7.521e-05,2]
[404390482,1770092701535,300.0,7.521e-05,2]
[404390491,1770092767461,151.0,7.519e-05,2]
[404390492,1770092791969,152.02910472,7.521e-05,2]
[404390493,1770092793370,350.0,7.521e-05,2]
[404390494,1770092821687,150.0,7.521e-05,2]
[404390495,1770092821778,300.0,7.521e-05,2]
[404390496,1770092851679,-500.0,7.522e-05,2]
[404390497,1770092851713,-1463.83258825,7.522e-05,2]
[404390498,1770092851745,-188.1733353,7.522e-05,2]
[404390499,1770092851834,-695.9981529,7.522e-05,2]
[404390500,1770092851879,-5000.01,7.522e-05,2]
[404390501,1770092851934,-5000.01,7.522e-05,2]
[404390502,1770092852087,-5000.01,7.522e-05,2]
[404390503,1770092852267,-2232.99598389,7.522e-05,2]
[404390504,1770092852298,-250.0,7.572e-05,2]
[404390505,1770092852805,-214.0,7.622e-05,2]
[404390506,1770092852837,-250.0,7.842e-05,2]
[404390507,1770092852867,-1000.0,7.944e-05,2]
[404390508,1770092852895,-101.258021,7.945e-05,2]
[404390509,1770092852924,-298.103899,7.945e-05,2]
[404390510,1770092852981,-1273.28616,7.945e-05,2]
[404390511,1770092853009,-250.0,8.178e-05,2]
[404390512,1770092853038,-500.0,8.219e-05,2]
[404390513,1770092853067,-453.43768,8.219e-05,2]
[404390514,1770092853220,-46.56232,8.219e-05,2]
[404390515,1770092853250,-500.0,8.219e-05,2]
[404390516,1770092853278,-500.0,8.219e-05,2]
[404390517,1770092853306,-500.0,8.219e-05,2]
[404390518,1770092853336,-500.0,8.219e-05,2]
[404390519,1770092853364,-406.88536,8.219e-05,2]
[404390520,1770092853585,-93.11464,8.219e-05,2]
[404390521,1770092853612,-466.42800041,8.219e-05,2]
[404390522,1770092853639,-500.0,8.219e-05,2]
[404390523,1770092853666,-255.0,8.273e-05,2]
[404390524,1770092853694,-250.0,8.274e-05,2]
[404390525,1770092853723,-500.0,8.274e-05,2]
[404390526,1770092854079,-441.98115222,8.384e-05,2]
[404390527,1770092854095,-255.0,8.384e-05,2]
[404390528,1770092854110,-250.0,8.384e-05,2]
[404390529,1770092854129,-500.0,8.384e-05,2]
[404390530,1770092854148,-870.92471918,8.384e-05,2]
[404390531,1770092860708,-980.8941286,8.384e-05,2]
[404390532,1770092860737,-150.99,8.384e-05,2]
[404390533,1770092860767,-999.99,8.384e-05,2]
[404390534,1770092860847,-736.2617428,8.384e-05,2]
[404390535,1770092860872,-5000.01,8.384e-05,2]
[404390536,1770092860965,-736.2917428,8.384e-05,2]
[404390537,1770092861189,-3527.4265144,8.384e-05,2]
[404390538,1770092863831,-299.99,8.384e-05,2]
[404390539,1770092863860,-4400.04,8.384e-05,2]
[404390540,1770092864123,-599.95,8.384e-05,2]
[404390541,1770092864150,-150.99,8.384e-05,2]
[404390542,1770092864281,-3727.86645997,8.384e-05,2]
[404390543,1770092866321,-5000.01,8.384e-05,2]
[404390544,1770092866341,-1272.11354003,8.384e-05,2]
[404390545,1770092866893,-0.02,8.384e-05,2]
[404390546,1770092866916,-9999.97,8.384e-05,2]
[404390547,1770092867963,5000.01,8.178e-05,2]
[404390548,1770092867986,1501.411242,8.178e-05,2]
[404390557,1770092948206,2350.185783,7.945e-05,2]
[404390575,1770093031988,-224.0,8.953e-05,2]
[404390576,1770093031998,-562.0,8.953e-05,2]
[404390648,1770093038128,-4374.683372,8.953e-05,2]
[404390649,1770093038138,-949.2578339,8.999e-05,2]
[404390650,1770093038148,-1200.0,8.999e-05,2]
[404390651,1770093038158,-15000.0,9e-05,2]
[404390652,1770093038168,-250.0,9.5e-05,2]
[404390653,1770093038177,-1680.0,9.899e-05,2]
[404390654,1770093038188,-250.0,9.9e-05,2]
[404390655,1770093038201,-210.8813549,9.9e-05,2]
[404390656,1770093038213,-300.0,9.9e-05,2]
[404390657,1770093038223,-250.0,9.974e-05,2]
[404390658,1770093038233,-500.0,0.0001,2]
[404390659,1770093038243,-151.0,0.0001,2]
[404390660,1770093038254,-151.0,0.0001,2]
[404390661,1770093038263,-151.0,0.0001,2]
[404390662,1770093038273,-151.0,0.0001,2]
[404390663,1770093038284,-151.0,0.0001,2]
[404390664,1770093038295,-151.0,0.0001,2]
[404390665,1770093038304,-151.0,0.0001,2]
[404390666,1770093038315,-151.0,0.0001,2]
[404390667,1770093038325,-151.0,0.0001,2]
[404390668,1770093038335,-500.0,0.0001,2]
[404390670,1770093038344,-151.0,0.0001,2]
[404390672,1770093038354,-500.0,0.0001,2]
[404390674,1770093038363,-151.0,0.0001,2]
[404390676,1770093038373,-500.0,0.0001,2]
[404390678,1770093038382,-151.0,0.0001,2]
[404390680,1770093038391,-151.0,0.0001,2]
[404390682,1770093038405,-500.0,0.0001,2]
[404390684,1770093038415,-500.0,0.0001,2]
[404390686,1770093038424,-151.0,0.0001,2]
[404390688,1770093038434,-500.0,0.0001,2]
[404390690,1770093038443,-151.0,0.0001,2]
[404390692,1770093038452,-500.0,0.0001,2]
[404390694,1770093038462,-151.0,0.0001,2]
[404390696,1770093038471,-500.0,0.0001,2]
[404390698,1770093038481,-151.0,0.0001,2]
[404390699,1770093038490,-500.0,0.0001,2]
[404390702,1770093038501,-151.0,0.0001,2]
[404390704,1770093038511,-500.0,0.0001,2]
[404390706,1770093038520,-500.0,0.0001,2]
[404390708,1770093038529,-151.0,0.0001,2]
[404390710,1770093038538,-151.0,0.0001,2]
[404390712,1770093038548,-151.0,0.0001,2]
[404390714,1770093038557,-151.0,0.0001,2]
[404390716,1770093038566,-151.0,0.0001,2]
[404390718,1770093038575,-151.0,0.0001,2]
[404390720,1770093038585,-151.0,0.0001,2]
[404390755,1770093038858,-151.0,0.0001,2]
[404390759,1770093038929,-151.0,0.0001,2]
[404390761,1770093038940,-151.0,0.0001,2]
[404390763,1770093038949,-151.0,0.0001,2]
[404390765,1770093038958,-151.0,0.0001,2]
[404390767,1770093038967,-151.0,0.0001,2]
[404390769,1770093038976,-500.0,0.0001,2]
[404390771,1770093038985,-500.0,0.0001,2]
[404390773,1770093038995,-500.0,0.0001,2]
[404390775,1770093039004,-500.0,0.0001,2]
[404390777,1770093039014,-500.0,0.0001,2]
[404390779,1770093039025,-500.0,0.0001,2]
[404390781,1770093039035,-500.0,0.0001,2]
[404390783,1770093039044,-500.0,0.0001,2]
[404390785,1770093039054,-500.0,0.0001,2]
[404390787,1770093039063,-500.0,0.0001,2]
[404390789,1770093039072,-500.0,0.0001,2]
[404390791,1770093039082,-150.01617603,0.0001,2]
[404390793,1770093039091,-500.0,0.00010074,2]
[404390795,1770093039101,-500.0,0.00010074,2]
[404390797,1770093039110,-500.0,0.00010074,2]
[404390799,1770093039119,-500.0,0.00010074,2]
[404390801,1770093039129,-500.0,0.00010074,2]
[404390803,1770093039138,-500.0,0.00010074,2]
[404390805,1770093039147,-500.0,0.00010074,2]
[404390807,1770093039157,-500.0,0.00010074,2]
[404390809,1770093039166,-500.0,0.00010074,2]
[404390811,1770093039176,-500.0,0.00010074,2]
[404390813,1770093039185,-500.0,0.00010074,2]
[404390815,1770093039194,-500.0,0.00010074,2]
[404390817,1770093039203,-500.0,0.00010074,2]
[404390819,1770093039214,-500.0,0.00010074,2]
[404390821,1770093039224,-403.44756117,0.00010742,2]
[404390823,1770093039233,-1064.70449709,0.00010742,2]
[404390825,1770093039243,-1878.26493633,0.00010742,2]
[404390827,1770093039253,-720.0,0.00010889,2]
[404390829,1770093039262,-159.79069879,0.00011099,2]
[404390832,1770093039277,-159.79069878,0.00011099,2]
[404390835,1770093039292,-150.01617603,0.00011456,2]
[404390837,1770093039301,-250.0,0.0001183,2]
[404390839,1770093039311,-614.43,0.00012441,2]
[404390841,1770093039320,-614.43,0.00012441,2]
[404390843,1770093039330,-614.43,0.00012441,2]
[404390845,1770093039339,-614.43,0.00012441,2]
[404390847,1770093039348,-180.32,0.00012578,2]
[404390849,1770093039358,-469.67,0.00012578,2]
[404390851,1770093039367,-180.32,0.00012578,2]
[404390853,1770093039377,-469.67,0.00012578,2]
[404390855,1770093039386,-180.32,0.00012578,2]
[404390857,1770093039397,-469.67,0.00012578,2]
[404390859,1770093039406,-180.32,0.00012578,2]
[404390861,1770093039415,-469.67,0.00012578,2]
[404390863,1770093039424,-180.32,0.00012578,2]
[404390865,1770093039434,-469.67,0.00012578,2]
[404390867,1770093039443,-278.73,0.00012777,2]
[404390869,1770093039452,-1852.42,0.00012822,2]
[404390871,1770093039462,-1876.03,0.0001287,2]
[404390873,1770093039471,-614.43,0.000129,2]
[404390875,1770093039481,-469.67,0.000129,2]